Workbook

Sheet Intro
C3: Oklahoma State University
C4: Canola Grain Drill Calibration Calculator
D6: 1. Tools and equipment needed
D7: - Clean grain drill or planter
D8: - Canola seed (actual variety and seed lot that will be used)
D9: - Tape measure
D10: - Small measuring devise (either 15 - 50 mL vial, or electric scale measuring in grams)
D11: - Jack (to raise drive wheel off the ground)
D12: 2. Review calibration procedure, click | H12: HERE
D13: 3. Select one of the four following calculators to determine how much seed to catch

Sheet LB to mL
C3: Canola Grain Drill Calibration Calculator
C4: Seeding rate in LB/A using volumetric method
C6: Inputs
D7: Drive tire circumference | K7: 92 | L7: inches
D9: Number of tire turns | K9: 15 | L9: turns
E10: - Recommended 15 or more
D12: Row spacing | K12: 7.5 | L12: inches
D14: Number of seed cups | K14: 4 | L14: cups
E15: - Recommended 4 per box section
D17: Target seeding rate | K17: 5 | L17: lbs/acre
C19: Results
D20: Amount to catch from 1 seed cup | K20: =((((K7/12)*(K12/12)*K9)/43560)*K17)*655.14357 -> 5.405009653 | L20: mL
D22: Amount to catch from | G22: =K14 -> 4 | H22: seed cups | K22: =G22*K20 -> 21.62003861 | L22: mL
C24: Evaluation
D25: Actual amount caught from | I25: =K14 -> 4 | J25: seed cups | K25: 16.5 | L25: mL
D27: Estimated seeding rate | K27: =(K17*K25)/K22 -> 3.815904379 | L27: lbs/acre

Sheet LB to G
C3: Canola Grain Drill Calibration Calculator
C4: Seeding rate in LB/A using weigh scale
C6: Inputs
D7: Drive tire circumference | K7: 92 | L7: inches
D9: Number of tire turns | K9: 15 | L9: turns
E10: - Recommended 15 or more
D12: Row spacing | K12: 7.5 | L12: inches
D14: Number of seed cups | K14: 4 | L14: cups
E15: - Recommended 4 per box section
D17: Target seeding rate | K17: 5 | L17: lbs/acre
C19: Results
D20: Amount to catch from 1 seed cup | K20: =((((K7/12)*(K12/12)*K9)/43560)*K17)*454 -> 3.745552112 | L20: grams
D22: Amount to catch from | G22: =K14 -> 4 | H22: seed cups | K22: =G22*K20 -> 14.98220845 | L22: grams
C24: Evaluation
D25: Actual amount caught from | I25: =K14 -> 4 | J25: seed cups | K25: 16.5 | L25: grams
D27: Estimated seeding rate | K27: =(K17*K25)/K22 -> 5.506531316 | L27: lbs/acre

Sheet Seeds to mL
C3: Canola Grain Drill Calibration Calculator
C4: Seeding rate in seeds/A using volumetric method
C6: Inputs
D7: Drive tire circumference | L7: 92 | M7: inches
D9: Number of tire turns | L9: 15 | M9: turns
E10: - Recommended 15 or more
D12: Row spacing | L12: 30 | M12: inches
D14: Number of seed cups | L14: 4 | M14: cups
E15: - Recommended 4 per box section
D17: Seed size | K17: 67000 | M17: seeds/lb
D19: Target seeding rate | K19: 167500 | M19: seeds/A
C21: Results
D22: Amount to catch from 1 seed cup | L22: =((((L7/12)*(L12/12)*L9)/43560)*(K19/K17)*655.14357) -> 10.81001931 | M22: mL
D24: Amount to catch from | G24: =L14 -> 4 | H24: seed cups | L24: =G24*L22 -> 43.24007722 | M24: mL
C26: Evaluation
D27: Actual amount caught from | I27: =L14 -> 4 | J27: seed cups | L27: 40 | M27: mL
D29: Estimated seeding rate | K29: =(K19*L27)/L24 -> 154948.8445 | M29: seeds/A

Sheet Seeds to G
C3: Canola Grain Drill Calibration Calculator
C4: Seeding rate in seeds/A using weigh scale
C6: Inputs
D7: Drive tire circumference | L7: 92 | M7: inches
D9: Number of tire turns | L9: 15 | M9: turns
E10: - Recommended 15 or more
D12: Row spacing | L12: 30 | M12: inches
D14: Number of seed cups | L14: 4 | M14: cups
E15: - Recommended 4 per box section
D17: Seed size | K17: 67000 | M17: seeds/lb
D19: Target seeding rate | K19: 167500 | M19: seeds/A
C21: Results
D22: Amount to catch from 1 seed cup | L22: =((((L7/12)*(L12/12)*L9)/43560)*(K19/K17)*454) -> 7.491104224 | M22: grams
D24: Amount to catch from | G24: =L14 -> 4 | H24: seed cups | L24: =G24*L22 -> 29.9644169 | M24: grams
C26: Evaluation
D27: Actual amount caught from | I27: =L14 -> 4 | J27: seed cups | L27: 28 | M27: grams
D29: Estimated seeding rate | K29: =(K19*L27)/L24 -> 156518.981 | M29: seeds/A
